fUSD/lending_fUSD_20240216
["ID","MTS","AMOUNT","RATE_DAILY","PERIOD"]
[314228125,1708102252528,-500.0,0.00049315,60]
[314228126,1708102252539,-500.0,0.00049315,60]
[314228127,1708102252550,-500.0,0.00049315,60]
[314228128,1708102252560,-826.59,0.00049315,60]
[314228129,1708102252569,-500.0,0.00049315,60]
[314228130,1708102252578,-503.17,0.00049315,60]
[314228131,1708102252588,-500.0,0.00049315,60]
[314228132,1708102252597,-500.0,0.00049315,60]
[314228133,1708102252606,-500.0,0.00049315,60]
[314228134,1708102252615,-500.0,0.00049315,60]
[314228135,1708102252624,-529.0294167,0.00049315,60]
[314228136,1708102252634,-551.4363899,0.00049315,60]
[314228137,1708102252643,-514.47909241,0.00049315,60]
[314228138,1708102252653,-500.0,0.00049315,60]
[314228139,1708102252663,-500.0,0.00049315,60]
[314228140,1708102252672,-330.13589254,0.00049315,60]
[314228141,1708102252682,-500.0,0.00049315,60]
[314228142,1708102252691,-768.14,0.00049315,60]
[314228143,1708102252702,-500.0,0.00049315,60]
[314228144,1708102252712,-500.0,0.00049315,60]
[314228145,1708102252721,-500.0,0.00049315,60]
[314228146,1708102252731,-500.0,0.00049315,60]
[314228147,1708102252742,-500.0,0.00049315,60]
[314228148,1708102252753,-500.0,0.00049315,60]
[314228149,1708102252762,-500.0,0.00049315,60]
[314228150,1708102252771,-500.0,0.00049315,60]
[314228151,1708102252780,-500.0,0.00049315,60]
[314228152,1708102252790,-500.0,0.00049315,60]
[314228153,1708102252803,-500.0,0.00049315,60]
[314228154,1708102252812,-848.39,0.00049315,60]
[314228155,1708102252821,-500.0,0.00049315,60]
[314228156,1708102252830,-508.12985095,0.00049315,60]
[314228157,1708102252840,-567.19158988,0.00049315,60]
[314228158,1708102252849,-1165.93,0.00049315,60]
[314228159,1708102252858,-500.0,0.00049315,60]
[314228160,1708102252867,-613.64,0.00049315,60]
[314228161,1708102252878,-500.0,0.00049315,60]
[314228162,1708102252887,-500.0,0.00049315,60]
[314228163,1708102252896,-500.0,0.00049315,7]
[314228164,1708102252906,-699.74,0.00049315,60]
[314228165,1708102252915,-500.0,0.00049315,60]
[314228166,1708102252925,-500.0,0.00049315,60]
[314228167,1708102252934,-500.0,0.00049315,60]
[314228168,1708102252943,-500.0,0.00049315,60]
[314228169,1708102252953,-500.0,0.00049315,60]
[314228170,1708102252962,-500.0,0.00049315,60]
[314228171,1708102252971,-500.0,0.00049315,60]
[314228172,1708102252981,-500.0,0.00049315,60]
[314228173,1708102252990,-500.0,0.00049315,60]
[314228174,1708102252999,-500.0,0.00049315,60]
[314228175,1708102253010,-500.0,0.00049315,60]
[314228176,1708102253022,-507.2462341,0.00049315,60]
[314228177,1708102253033,-500.0,0.00049315,60]
[314228178,1708102253047,-500.0,0.00049315,60]
[314228179,1708102253057,-500.0,0.00049315,60]
[314228180,1708102253067,-500.0,0.00049315,60]
[314228181,1708102253076,-516.94,0.00049315,60]
[314228182,1708102253085,-679.63,0.00049315,60]
[314228183,1708102253095,-535.80571864,0.00049315,60]
[314228184,1708102253104,-500.0,0.00049315,60]
[314228185,1708102253114,-583.4,0.00049315,60]
[314228186,1708102253123,-500.0,0.00049315,60]
[314228187,1708102253133,-500.0,0.00049315,60]
[314228188,1708102253142,-500.0,0.00049315,60]
[314228189,1708102253152,-500.0,0.00049315,60]
[314228190,1708102253162,-500.0,0.00049315,60]
[314228191,1708102253171,-535.48,0.00049315,60]
[314228192,1708102253180,-500.0,0.00049315,60]
[314228193,1708102253188,-529.70883647,0.00049315,60]
[314228194,1708102253197,-500.0,0.00049315,60]
[314228195,1708102253206,-204.06683657,0.00049315,60]
[314228196,1708102253215,-500.0,0.00049315,60]
[314228197,1708102253224,-500.0,0.00049315,60]
[314228198,1708102253233,-519.67775606,0.00049315,60]
[314228199,1708102253243,-787.95,0.00049315,60]
[314228200,1708102253252,-511.64814924,0.00049315,60]
[314228201,1708102253261,-503.45937228,0.00049315,60]
[314228202,1708102253284,-10000.0,0.00049315,60]
[314228203,1708102253296,-500.0,0.00049315,60]
[314228204,1708102253305,-500.0,0.00049315,60]
[314228205,1708102253315,-811.87,0.00049315,60]
[314228206,1708102253325,-529.75226389,0.00049315,60]
[314228207,1708102253334,-424.49233036,0.00049315,60]
[314228208,1708102253345,-500.0,0.00049315,60]
[314228209,1708102253356,-636.19,0.00049315,60]
[314228210,1708102253366,-500.0,0.00049315,60]
[314228211,1708102253375,-500.0,0.00049315,60]
[314228212,1708102253384,-777.81,0.00049315,2]
[314228213,1708102253393,-500.0,0.00049315,60]
[314228214,1708102253403,-500.0,0.00049315,60]
[314228215,1708102253412,-500.0,0.00049315,60]
[314228216,1708102253421,-500.0,0.00049315,60]
[314228217,1708102253430,-10000.0,0.00049315,60]
[314228218,1708102253440,-500.0,0.00049315,60]
[314228219,1708102253449,-637.52,0.00049315,60]
[314228220,1708102253458,-532.19,0.00049315,60]
[314228221,1708102253467,-547.85470307,0.00049315,60]
[314228222,1708102253476,-500.0,0.00049315,60]
[314228223,1708102253486,-500.0,0.00049315,60]
[314228224,1708102253495,-552.34038917,0.00049315,60]
[314228225,1708102253504,-500.0,0.00049315,60]
[314228226,1708102253514,-500.0,0.00049315,60]
[314228227,1708102253523,-500.0,0.00049315,60]
[314228228,1708102253532,-500.0,0.00049315,60]
[314228229,1708102253542,-500.0,0.00049315,60]
[314228230,1708102253552,-653.58,0.00049315,60]
[314228231,1708102253562,-500.0,0.00049315,60]
[314228232,1708102253571,-500.0,0.00049315,60]
[314228233,1708102253580,-500.0,0.00049315,60]
[314228234,1708102253589,-511.54212106,0.00049315,60]
[314228235,1708102253598,-500.0,0.00049315,60]
[314228236,1708102253608,-500.0,0.00049315,60]
[314228237,1708102253617,-500.0,0.00049315,60]
[314228238,1708102253626,-506.26590025,0.00049315,60]
[314228239,1708102253635,-500.0,0.00049315,60]
[314228240,1708102253643,-500.0,0.00049315,60]
[314228241,1708102253652,-500.0,0.00049315,60]
[314228242,1708102253662,-566.91,0.00049315,60]
[314228243,1708102253671,-500.0,0.00049315,60]
[314228244,1708102253680,-628.08,0.00049315,60]
[314228245,1708102253823,-500.0,0.00049315,60]
[314228246,1708102253833,-500.0,0.00049315,60]
[314228247,1708102253843,-500.0,0.00049315,60]
[314228248,1708102253853,-500.0,0.00049315,60]
[314228249,1708102253862,-515.23139456,0.00049315,60]
[314228250,1708102253873,-625.64,0.00049315,60]
[314228251,1708102253883,-576.34,0.00049315,60]
[314228252,1708102253892,-500.0,0.00049315,60]
[314228253,1708102253902,-500.0,0.00049315,60]
[314228254,1708102253911,-500.0,0.00049315,60]
[314228255,1708102253920,-500.0,0.00049315,60]
[314228256,1708102253929,-765.58,0.00049315,60]
[314228257,1708102253938,-500.0,0.00049315,60]
[314228258,1708102253948,-500.0,0.00049315,60]
[314228259,1708102253958,-500.0,0.00049315,60]
[314228260,1708102253967,-500.0,0.00049315,60]
[314228261,1708102253977,-956.58,0.00049315,2]
[314228262,1708102253986,-500.0,0.00049315,60]
[314228263,1708102253996,-582.71934518,0.00049315,60]
[314228264,1708102254005,-509.1765102,0.00049315,60]
[314228265,1708102254015,-500.0,0.00049315,60]
[314228266,1708102254025,-500.0,0.00049315,30]
[314228267,1708102254034,-500.0,0.00049315,60]
[314228268,1708102254047,-500.0,0.00049315,60]
[314228269,1708102254057,-500.0,0.00049315,60]
[314228270,1708102254066,-500.0,0.00049315,60]
[314228271,1708102254075,-500.0,0.00049315,60]
[314228272,1708102254085,-500.0,0.00049315,60]
[314228273,1708102254095,-632.85,0.00049315,60]
[314228274,1708102254105,-500.0,0.00049315,60]
[314228275,1708102254114,-500.0,0.00049315,60]
[314228276,1708102254127,-500.0,0.00049315,60]
[314228277,1708102254138,-500.0,0.00049315,60]
[314228278,1708102254147,-548.80933798,0.00049315,60]
[314228279,1708102254156,-500.0,0.00049315,60]
[314228280,1708102254166,-500.0,0.00049315,60]
[314228281,1708102254175,-500.0,0.00049315,60]
[314228282,1708102254184,-500.0,0.00049315,60]
[314228283,1708102254192,-759.12,0.00049315,60]
[314228284,1708102254202,-500.0,0.00049315,60]
[314228285,1708102254211,-2522.16,0.00049315,60]
[314228286,1708102254220,-509.23537584,0.00049315,60]
[314228287,1708102254230,-500.0,0.00049315,60]
[314228288,1708102254239,-500.0,0.00049315,60]
[314228289,1708102254249,-500.0,0.00049315,60]
[314228290,1708102254258,-797.19,0.00049315,60]
[314228291,1708102254278,-500.0,0.00049315,60]
[314228292,1708102254287,-500.0,0.00049315,60]
[314228293,1708102254297,-513.46,0.00049315,60]
[314228294,1708102254306,-502.41,0.00049315,60]
[314228295,1708102254315,-500.0,0.00049315,60]
[314228296,1708102254324,-713.27,0.00049315,60]
[314228297,1708102254333,-523.06475469,0.00049315,60]
[314228298,1708102254342,-753.97,0.00049315,60]
[314228299,1708102254351,-500.0,0.00049315,60]
[314228300,1708102254360,-500.0,0.00049315,60]
[314228301,1708102254370,-643.15237528,0.00049315,60]
[314228302,1708102254379,-500.0,0.00049315,60]
[314228303,1708102254388,-616.69,0.00049315,60]
[314228304,1708102254398,-500.0,0.00049315,60]
[314228305,1708102254416,-648.16,0.00049315,60]
[314228306,1708102254430,-500.0,0.00049315,60]
[314228307,1708102254442,-500.0,0.00049315,60]
[314228308,1708102254452,-500.0,0.00049315,60]
[314228309,1708102254464,-500.0,0.00049315,60]
[314228310,1708102254473,-500.0,0.00049315,60]
[314228311,1708102254483,-799.86,0.00049315,60]
[314228312,1708102254493,-500.0,0.00049315,60]
[314228313,1708102254503,-500.0,0.00049315,60]
[314228314,1708102254512,-573.56620017,0.00049315,60]
[314228315,1708102254522,-500.0,0.00049315,60]
[314228316,1708102254531,-500.0,0.00049315,60]
[314228317,1708102254541,-500.0,0.00049315,60]
[314228318,1708102254553,-250.0,0.00049315,60]
[314228319,1708102254562,-500.0,0.00049315,60]
[314228320,1708102254572,-500.0,0.00049315,60]
[314228321,1708102254582,-989.53,0.00049315,60]
[314228322,1708102254592,-500.0,0.00049315,60]
[314228323,1708102254601,-500.0,0.00049315,60]
[314228324,1708102254611,-500.0,0.00049315,60]
[314228325,1708102254621,-500.0,0.00049315,60]
[314228326,1708102254630,-500.0,0.00049315,60]
[314228327,1708102254639,-595.65359628,0.00049315,60]
[314228328,1708102254649,-500.0,0.00049315,60]
[314228329,1708102254658,-500.0,0.00049315,60]
[314228330,1708102254667,-654.2,0.00049315,60]
[314228331,1708102254677,-561.20568182,0.00049315,60]
[314228332,1708102254687,-630.93,0.00049315,60]
[314228333,1708102254697,-500.0,0.00049315,60]
[314228334,1708102254706,-500.0,0.00049315,60]
[314228335,1708102254716,-508.07321601,0.00049315,60]
[314228336,1708102254725,-500.0,0.00049315,60]
[314228337,1708102254735,-617.31,0.00049315,60]
[314228338,1708102254744,-500.0,0.00049315,60]
[314228339,1708102254754,-500.0,0.00049315,60]
[314228340,1708102254763,-500.0,0.00049315,60]
[314228341,1708102254795,-500.0,0.00049315,60]
[314228342,1708102254815,-500.0,0.00049315,60]
[314228343,1708102254835,-500.0,0.00049315,60]
[314228344,1708102254856,-500.0,0.00049315,60]
[314228345,1708102254875,-533.47,0.00049315,60]
[314228346,1708102254893,-1007.9183219,0.00049315,60]
[314228347,1708102254912,-1077.05,0.00049315,60]
[314228348,1708102254930,-500.0,0.00049315,60]
[314228349,1708102254950,-500.0,0.00049315,60]
[314228350,1708102254967,-500.0,0.00049315,60]
[314228351,1708102254987,-500.0,0.00049315,60]
[314228352,1708102255007,-500.0,0.00049315,60]
[314228353,1708102255021,-507.19144205,0.00049315,60]
[314228354,1708102255037,-500.0,0.00049315,60]
[314228355,1708102255057,-500.0,0.00049315,60]
[314228356,1708102255077,-500.0,0.00049315,60]
[314228357,1708102255096,-500.0,0.00049315,60]
[314228358,1708102255118,-500.0,0.00049315,60]
[314228359,1708102255141,-500.0,0.00049315,60]
[314228360,1708102255159,-500.0,0.00049315,60]
[314228361,1708102255178,-163.01651195,0.00049315,60]
[314228362,1708102255196,-500.0,0.00049315,60]
[314228363,1708102255213,-500.0,0.00049315,60]
[314228364,1708102255235,-913.94,0.00049315,60]
[314228365,1708102255253,-500.0,0.00049315,60]
[314228366,1708102255268,-981.69,0.00049315,60]
[314228367,1708102255284,-500.0,0.00049315,60]
[314228368,1708102255300,-500.0,0.00049315,60]
[314228369,1708102255315,-687.63,0.00049315,60]
[314228370,1708102255330,-800.17,0.00049315,60]
[314228371,1708102255347,-500.0,0.00049315,60]
[314228372,1708102255362,-500.0,0.00049315,60]
[314228373,1708102255377,-1335.85,0.00049315,7]
[314228374,1708102255391,-500.0,0.00049315,60]
[314228375,1708102255406,-500.0,0.00049315,60]
[314228376,1708102255420,-869.95,0.00049315,60]
[314228377,1708102255436,-500.0,0.00049315,60]
[314228378,1708102255450,-506.00892832,0.00049315,60]
[314228379,1708102255465,-500.0,0.00049315,60]
[314228380,1708102255479,-545.96,0.00049315,60]
[314228381,1708102255493,-379.63667633,0.00049315,60]
[314228382,1708102255507,-500.0,0.00049315,60]
[314228383,1708102255521,-823.5,0.00049315,60]
[314228384,1708102255536,-500.0,0.00049315,60]
[314228385,1708102255552,-595.1,0.00049315,60]
[314228386,1708102255567,-500.0,0.00049315,60]
[314228387,1708102255581,-500.0,0.00049315,60]
[314228388,1708102255595,-500.0,0.00049315,60]
[314228389,1708102255610,-500.0,0.00049315,60]
[314228390,1708102255625,-500.0,0.00049315,60]
[314228391,1708102255640,-500.0,0.00049315,60]
[314228392,1708102255654,-713.89,0.00049315,60]
[314228393,1708102255668,-1000.0,0.00049315,2]
[314228394,1708102255682,-500.0,0.00049315,60]
[314228395,1708102255703,-597.61549857,0.00049315,60]
[314228396,1708102255725,-500.0,0.00049315,60]
[314228397,1708102255743,-673.01,0.00049315,60]
[314228398,1708102255762,-500.0,0.00049315,60]
[314228399,1708102255778,-500.0,0.00049315,60]
[314228400,1708102255794,-500.03910027,0.00049315,60]
[314228401,1708102255810,-500.0,0.00049315,60]
[314228402,1708102255827,-500.0,0.00049315,60]
[314228403,1708102255845,-523.64891625,0.00049315,60]
[314228404,1708102255861,-500.0,0.00049315,60]
[314228405,1708102255876,-500.0,0.00049315,60]
[314228406,1708102255891,-1092.95,0.00049315,60]
[314228407,1708102255906,-500.0,0.00049315,60]
[314228408,1708102255921,-500.0,0.00049315,60]
[314228409,1708102255935,-500.0,0.00049315,60]
[314228410,1708102255951,-692.75,0.00049315,60]
[314228411,1708102255967,-537.68,0.00049315,60]
[314228412,1708102255982,-517.21505423,0.00049315,60]
[314228413,1708102255996,-500.0,0.00049315,7]
[314228414,1708102256010,-500.0,0.00049315,60]
[314228415,1708102256029,-500.0,0.00049315,60]
[314228416,1708102256044,-500.0,0.00049315,60]
[314228417,1708102256059,-549.07651893,0.00049315,60]
[314228418,1708102256074,-509.51469059,0.00049315,60]
[314228419,1708102256090,-500.0,0.00049315,60]
[314228420,1708102256105,-500.0,0.00049315,60]
[314228421,1708102256120,-500.0,0.00049315,60]
[314228422,1708102256135,-510.67158826,0.00049315,60]
[314228423,1708102256152,-946.29,0.00049315,60]
[314228424,1708102256166,-500.0,0.00049315,60]
[314228425,1708102256176,-1172.15,0.00049315,60]
[314228426,1708102256189,-500.0,0.00049315,60]
[314228427,1708102256198,-500.0,0.00049315,60]
[314228428,1708102256207,-500.0,0.00049315,60]
[314228429,1708102256216,-500.0,0.00049315,60]
[314228430,1708102256226,-500.0,0.00049315,60]
[314228431,1708102256235,-500.0,0.00049315,60]
[314228432,1708102256245,-500.0,0.00049315,60]
[314228433,1708102256254,-500.0,0.00049315,60]
[314228434,1708102256263,-500.0,0.00049315,60]
[314228435,1708102256273,-445.69400902,0.00049315,60]
[314228436,1708102256553,-500.0,0.00049315,60]
[314228437,1708102256590,-500.0,0.00049315,60]
[314228438,1708102256605,-500.0,0.00049315,60]
[314228439,1708102256614,-500.0,0.00049315,60]
[314228440,1708102256624,-500.0,0.00049315,60]
[314228441,1708102256633,-567.18,0.00049315,60]
[314228442,1708102256641,-707.22,0.00049315,60]
[314228443,1708102256650,-513.67463135,0.00049315,60]
[314228444,1708102256659,-500.0,0.00049315,60]
[314228445,1708102256669,-500.0,0.00049315,60]
[314228446,1708102256678,-553.44,0.00049315,60]
[314228447,1708102256688,-500.0,0.00049315,30]
[314228448,1708102256697,-628.94234534,0.00049315,60]
[314228449,1708102256707,-514.70253306,0.00049315,60]
[314228450,1708102256716,-500.0,0.00049315,60]
[314228451,1708102256725,-500.0,0.00049315,60]
[314228452,1708102256736,-500.0,0.00049315,60]
[314228453,1708102256746,-500.0,0.00049315,60]
[314228454,1708102256756,-500.0,0.00049315,60]
[314228455,1708102256765,-500.0,0.00049315,60]
[314228456,1708102256774,-500.0,0.00049315,60]
[314228457,1708102256783,-500.0,0.00049315,60]
[314228458,1708102256792,-513.93576816,0.00049315,60]
[314228459,1708102256803,-500.0,0.00049315,60]
[314228460,1708102256812,-500.0,0.00049315,60]
[314228461,1708102256821,-500.0,0.00049315,60]
[314228462,1708102256830,-500.0,0.00049315,60]
[314228463,1708102256840,-588.74,0.00049315,60]
[314228464,1708102256849,-500.0,0.00049315,60]
[314228465,1708102256859,-500.0,0.00049315,60]
[314228466,1708102256868,-572.11,0.00049315,60]
[314228467,1708102256878,-500.0,0.00049315,60]
[314228468,1708102256887,-608.78053606,0.00049315,60]
[314228469,1708102256897,-500.0,0.00049315,60]
[314228470,1708102256906,-500.0,0.00049315,60]
[314228471,1708102256915,-500.0,0.00049315,60]
[314228472,1708102256925,-500.0,0.00049315,60]
[314228473,1708102256934,-500.0,0.00049315,60]
[314228474,1708102256944,-500.0,0.00049315,60]
[314228475,1708102256954,-3914.32,0.00049315,60]
[314228476,1708102256963,-500.0,0.00049315,60]
[314228477,1708102256972,-500.0,0.00049315,60]
[314228478,1708102256981,-500.0,0.00049315,60]
[314228479,1708102256991,-500.0,0.00049315,60]
[314228480,1708102257000,-838.41,0.00049315,60]
[314228481,1708102257009,-500.0,0.00049315,60]
[314228482,1708102257021,-500.0,0.00049315,60]
[314228483,1708102257030,-500.0,0.00049315,60]
[314228484,1708102257040,-500.0,0.00049315,60]
[314228485,1708102257050,-500.0,0.00049315,60]
[314228486,1708102257060,-500.0,0.00049315,60]
[314228487,1708102257070,-500.0,0.00049315,60]
[314228488,1708102257079,-517.84516999,0.00049315,60]
[314228489,1708102257089,-500.0,0.00049315,60]
[314228490,1708102257098,-500.0,0.00049315,60]
[314228491,1708102257107,-500.0,0.00049315,60]
[314228492,1708102257117,-500.0,0.00049315,60]
[314228493,1708102257127,-500.0,0.00049315,60]
[314228494,1708102257136,-7395.6,0.00049315,60]
[314228495,1708102257147,-500.0,0.00049315,60]
[314228496,1708102257157,-512.01817763,0.00049315,60]
[314228497,1708102257166,-500.0,0.00049315,60]
[314228498,1708102257176,-500.0,0.00049315,120]
[314228499,1708102257186,-571.71,0.00049315,60]
[314228500,1708102257195,-521.79,0.00049315,60]
[314228501,1708102257206,-221.4201731,0.00049315,60]
[314228502,1708102257215,-500.0,0.00049315,60]
[314228503,1708102257225,-500.0,0.00049315,60]
[314228504,1708102257235,-500.0,0.00049315,60]
[314228505,1708102257245,-500.0,0.00049315,60]
[314228506,1708102257254,-500.0,0.00049315,60]
[314228507,1708102257264,-500.0,0.00049315,60]
[314228508,1708102257273,-679.36,0.00049315,60]
[314228509,1708102257283,-500.0,0.00049315,60]
[314228510,1708102257292,-500.0,0.00049315,60]
[314228511,1708102257303,-708.46,0.00049315,60]
[314228512,1708102257312,-500.0,0.00049315,60]
[314228513,1708102257321,-500.0,0.00049315,60]
[314228514,1708102257331,-500.0,0.00049315,60]
[314228515,1708102257340,-1185.27,0.00049315,60]
[314228516,1708102257349,-236.04978591,0.00049315,60]
[314228517,1708102257359,-500.0,0.00049315,60]
[314228518,1708102257368,-500.0,0.00049315,60]
[314228519,1708102257378,-500.0,0.00049315,60]
[314228520,1708102257387,-498.01563294,0.00049315,60]
[314228521,1708102257396,-500.0,0.00049315,60]
[314228522,1708102257407,-500.0,0.00049315,60]
[314228523,1708102257416,-500.0,0.00049315,60]
[314228524,1708102257425,-500.0,0.00049315,60]
[314228525,1708102257436,-500.0,0.00049315,60]
[314228526,1708102257446,-500.0,0.00049315,60]
[314228527,1708102257455,-500.0,0.00049315,60]
[314228528,1708102257464,-500.0,0.00049315,60]
[314228529,1708102257474,-3268.86,0.00049315,60]
[314228530,1708102257484,-500.0,0.00049315,60]
[314228531,1708102257493,-500.0,0.00049315,60]
[314228532,1708102257503,-500.0,0.00049315,60]
[314228533,1708102257513,-500.0,0.00049315,60]
[314228534,1708102257523,-500.0,0.00049315,60]
[314228535,1708102257533,-500.0,0.00049315,60]
[314228536,1708102257543,-500.0,0.00049315,60]
[314228537,1708102257554,-500.0,0.00049315,60]
[314228538,1708102257563,-500.0,0.00049315,60]
[314228539,1708102257572,-500.0,0.00049315,60]
[314228540,1708102257581,-500.0,0.00049315,60]
[314228541,1708102257591,-525.76,0.00049315,60]
[314228542,1708102257601,-500.0,0.00049315,60]
[314228543,1708102257610,-527.99211023,0.00049315,60]
[314228544,1708102257619,-500.0,0.00049315,60]
[314228545,1708102257629,-500.0,0.00049315,60]
[314228546,1708102257638,-500.0,0.00049315,60]
[314228547,1708102257647,-500.0,0.00049315,60]
[314228548,1708102257657,-500.0,0.00049315,60]
[314228549,1708102257666,-500.0,0.00049315,60]
[314228550,1708102257675,-500.0,0.00049315,60]
[314228551,1708102257684,-500.0,0.00049315,60]
[314228552,1708102257694,-500.0,0.00049315,60]
[314228553,1708102257713,-500.0,0.00049315,60]
[314228554,1708102257723,-2518.17,0.00049315,60]
[314228555,1708102257733,-500.0,0.00049315,60]
[314228556,1708102257742,-155.48,0.00049315,60]
[314228557,1708102257752,-500.0,0.00049315,60]
[314228558,1708102257761,-569.9711461,0.00049315,60]
[314228559,1708102257770,-500.0,0.00049315,60]
[314228560,1708102257780,-500.0,0.00049315,60]
[314228561,1708102257789,-500.0,0.00049315,60]
[314228562,1708102257799,-509.92421235,0.00049315,60]
[314228563,1708102257809,-500.0,0.00049315,60]
[314228564,1708102257819,-1416.6,0.00049315,60]
[314228565,1708102257829,-500.0,0.00049315,60]
[314228566,1708102257838,-500.0,0.00049315,60]
[314228567,1708102257848,-500.0,0.00049315,60]
[314228568,1708102257858,-562.89,0.00049315,60]
[314228569,1708102257867,-699.1,0.00049315,60]
[314228570,1708102257877,-500.0,0.00049315,60]
[314228571,1708102257886,-500.0,0.00049315,60]
[314228572,1708102257896,-500.0,0.00049315,60]
[314228573,1708102257905,-548.69022625,0.00049315,60]
[314228574,1708102257915,-500.0,0.00049315,60]
[314228575,1708102257924,-556.51478119,0.00049315,60]
[314228576,1708102257934,-500.0,0.00049315,60]
[314228577,1708102257944,-500.0,0.00049315,60]
[314228578,1708102257953,-500.0,0.00049315,60]
[314228579,1708102257963,-500.0,0.00049315,60]
[314228580,1708102257973,-1675.73,0.00049315,60]
[314228581,1708102257982,-500.0,0.00049315,60]
[314228582,1708102257992,-500.0,0.00049315,60]
[314228583,1708102258002,-559.47,0.00049315,60]
[314228584,1708102258012,-500.0,0.00049315,60]
[314228585,1708102258022,-500.0,0.00049315,60]
[314228586,1708102258031,-500.0,0.00049315,60]
[314228587,1708102258044,-603.51,0.00049315,60]
[314228588,1708102258056,-500.0,0.00049315,60]
[314228589,1708102258066,-500.0,0.00049315,60]
[314228590,1708102258075,-806.37,0.00049315,60]
[314228591,1708102258085,-500.0,0.00049315,60]
[314228592,1708102258094,-630.21,0.00049315,60]
[314228593,1708102258105,-500.0,0.00049315,60]
[314228594,1708102258116,-464.41333393,0.00049315,60]
[314228595,1708102258126,-500.0,0.00049315,60]
[314228596,1708102258136,-500.0,0.00049315,60]
[314228597,1708102258146,-504.94921186,0.00049315,60]
[314228598,1708102258156,-500.0,0.00049315,60]
[314228599,1708102258165,-500.0,0.00049315,60]
[314228600,1708102258174,-500.0,0.00049315,60]
[314228601,1708102258184,-500.0,0.00049315,60]
[314228602,1708102258194,-3618.25,0.00049315,60]
[314228603,1708102258204,-500.0,0.00049315,60]
[314228604,1708102258213,-482.88086515,0.00049315,60]
[314228605,1708102258223,-500.0,0.00049315,60]
[314228606,1708102258233,-500.0,0.00049315,60]
[314228607,1708102258242,-521.50766613,0.00049315,60]
[314228608,1708102258252,-8111.60991849,0.00049315,60]
[314228609,1708102258844,-1467.62008151,0.00049315,60]
[314228610,1708102258854,-1765.6,0.00049315,2]
[314228611,1708102258865,-500.0,0.00049315,60]
[314228612,1708102258874,-500.0,0.00049315,60]
[314228613,1708102258884,-500.0,0.00049315,60]
[314228614,1708102258894,-500.0,0.00049315,60]
[314228615,1708102258903,-666.42,0.00049315,60]
[314228616,1708102258913,-518.20263936,0.00049315,60]
[314228617,1708102258922,-500.0,0.00049315,60]
[314228618,1708102258932,-500.0,0.00049315,60]
[314228619,1708102258941,-500.0,0.00049315,60]
[314228620,1708102258950,-497.05734657,0.00049315,60]
[314228621,1708102270100,260000.0,0.00023,2]
[314228622,1708102270130,790000.0,0.00023,2]
[314228623,1708102270162,9797.7344954,0.00023,2]
[314228624,1708102270189,4209.94359131,0.00023,2]